fUSD/lending_fUSD_20250314
["ID","MTS","AMOUNT","RATE_DAILY","PERIOD"]
[356136660,1741939845944,-3499.19700009,9.999e-05,2]
[356136661,1741939845956,-851.48121036,9.999e-05,2]
[356136662,1741939845975,-856.20926424,9.999e-05,2]
[356136663,1741939845987,-7867.55074019,9.999e-05,2]
[356136664,1741939845998,-3622.53010337,9.999e-05,2]
[356136665,1741939846010,-282.02,9.999e-05,2]
[356136667,1741939846021,-169200.61988154,9.999e-05,2]
[356136670,1741939846033,-2182.4495584,9.999e-05,2]
[356136672,1741939846044,-13446.87990497,9.999e-05,2]
[356136674,1741939846056,-3785.15416186,9.999e-05,2]
[356136713,1741940158385,200.0,9.4e-05,3]
[356136714,1741940160476,130.98599607,9.5e-05,3]
[356136715,1741940161303,-250.31882384,9.5e-05,3]
[356136716,1741940163390,-118.69518009,9.5e-05,3]
[356136717,1741940163416,-31.30481991,9.6e-05,3]
[356136718,1741940196946,-245.75244979,9.545e-05,2]
[356136721,1741940308565,-200.0,9.437e-05,2]
[356136726,1741940465836,163.88,9.248e-05,2]
[356136727,1741940487106,-212.84562838,9.378e-05,2]
[356136728,1741940524531,-84.80437162,9.378e-05,2]
[356136729,1741940524554,-65.19562838,9.4e-05,2]
[356136730,1741940539300,-150.0,9.324e-05,2]
[356136731,1741940556404,1537.03,9.252e-05,2]
[356136732,1741940591088,-150.0,9.562e-05,7]
[356136737,1741940669173,9189.62,9.196e-05,2]
[356136738,1741940681602,-14.3,9.324e-05,2]
[356136739,1741940681624,-135.7,9.382e-05,2]
[356136740,1741940711198,-164.45,9.382e-05,2]
[356136742,1741940715297,-293.47323598,9.382e-05,2]
[356136744,1741940728705,1280.76,9.199e-05,2]
[356136745,1741940731453,-1100.0,9.7e-05,3]
[356136746,1741940731476,-1400.0,9.8e-05,3]
[356136747,1741940731499,-200.0,9.9e-05,3]
[356136748,1741940731522,-199.86817006,9.998e-05,3]
[356136749,1741940731544,-175.0,9.999e-05,3]
[356136750,1741940731566,-200.0,0.0001,3]
[356136751,1741940737497,13000.0,8e-05,2]
[356136761,1741940746290,-1062.42676402,9.382e-05,2]
[356136762,1741940746313,-527.99,9.382e-05,2]
[356136763,1741940746337,-84.80437162,9.4e-05,2]
[356136764,1741940746360,-166.23,9.422e-05,2]
[356136765,1741940746383,-209.46,9.437e-05,2]
[356136766,1741940746410,-93.23755021,9.545e-05,2]
[356136767,1741940746431,-171.55,9.773e-05,2]
[356136768,1741940746455,-164.3,9.79e-05,2]
[356136769,1741940746478,-767.00310531,9.837e-05,2]
[356136770,1741940746500,-150.0,9.898e-05,2]
[356136771,1741940746523,-28786.8142,9.899e-05,2]
[356136772,1741940746545,-192.3828,9.899e-05,2]
[356136773,1741940746567,-6096.1868,9.899e-05,2]
[356136774,1741940746590,-155.13427261,9.973e-05,2]
[356136775,1741940746613,-171.018,9.998e-05,2]
[356136776,1741940746637,-2987.805,9.998e-05,2]
[356136777,1741940746661,-1321.68,9.998e-05,2]
[356136778,1741940746685,-15617.10896617,9.999e-05,2]
[356136809,1741940755762,34715.05258031,6.94e-05,2]
[356136810,1741940762989,1419.85402939,8e-05,2]
[356136816,1741940877060,24693.8033903,8e-05,2]
[356136817,1741940877092,837.76353355,8e-05,2]
[356136818,1741940877119,5048.99453607,8e-05,2]
[356136819,1741940877146,6440.17187779,8e-05,2]
[356136820,1741940877173,4479.63343878,8e-05,2]
[356136821,1741940877204,49927.73639556,8e-05,2]
[356136833,1741940935943,2432.5,8.219e-05,2]
[356136896,1741941031802,-245.7524,9.873e-05,2]
[356136898,1741941031812,-254.2476,9.873e-05,2]
[356136901,1741941031911,-296.808002,9.873e-05,2]
[356136902,1741941031922,-477.39999995,9.873e-05,2]
[356136903,1741941031933,-510.8,9.873e-05,2]
[356136904,1741941031966,-541.345,9.873e-05,2]
[356136905,1741941031977,-8919.39939805,9.873e-05,2]
[356136906,1741941031987,-5237.76032038,9.88e-05,2]
[356136907,1741941031996,-3.35233364,9.999e-05,2]
[356136908,1741941032008,-3340.42916274,9.999e-05,2]
[356136909,1741941032020,-680.49,9.999e-05,2]
[356136910,1741941032081,-8984.30724787,9.999e-05,2]
[356136911,1741941032139,-2473.08,9.999e-05,2]
[356136912,1741941032196,-1041.76047077,9.999e-05,2]
[356136913,1741941032208,-786.44211909,9.999e-05,2]
[356136919,1741941037727,-1346.55037852,9.999e-05,2]
[356136920,1741941037739,-363.60613795,9.999e-05,2]
[356136921,1741941037750,-1756.27846413,9.999e-05,2]
[356136922,1741941037762,-321.1250003,9.999e-05,2]
[356136923,1741941037773,-818.775,9.999e-05,2]
[356136924,1741941037796,-451.15504761,9.999e-05,2]
[356136925,1741941037807,-2943.84242347,9.999e-05,2]
[356136926,1741941037818,-5508.92049053,9.999e-05,2]
[356136927,1741941037830,-39298.37990629,9.999e-05,2]
[356136928,1741941037845,-3388.23608013,9.999e-05,2]
[356136929,1741941037856,-315.83570238,9.999e-05,2]
[356136930,1741941037867,-4584.40866984,9.999e-05,2]
[356136931,1741941037879,-647.92828655,9.999e-05,2]
[356136932,1741941037889,-1805.78019978,9.999e-05,2]
[356136933,1741941037905,-759.499977,9.999e-05,2]
[356136934,1741941037917,-2332.31507349,9.999e-05,2]
[356136935,1741941037929,-2535.07096384,9.999e-05,2]
[356136936,1741941037939,-1363.83747749,9.999e-05,2]
[356136937,1741941037951,-4562.96991148,9.999e-05,2]
[356136938,1741941037962,-11710.53549523,9.999e-05,2]
[356136939,1741941037973,-119922.11428326,9.999e-05,2]
[356136940,1741941037984,-802.5399999,9.999e-05,2]
[356136941,1741941038126,-1011.86821652,9.999e-05,2]
[356136942,1741941038139,-47196.79018979,9.999e-05,2]
[356136943,1741941038150,-1771.25319966,9.999e-05,2]
[356136944,1741941038161,-543.48961775,9.999e-05,2]
[356136945,1741941038173,-832.25,9.999e-05,2]
[356136952,1741941039884,-1983.63196406,9.999e-05,2]
[356136953,1741941040062,-1540.02928545,9.999e-05,2]
[356136954,1741941040082,-395.472,9.999e-05,2]
[356136955,1741941040095,-1157.05944297,9.999e-05,2]
[356136956,1741941040107,-474.909998,9.999e-05,2]
[356136957,1741941040123,-305.0000025,9.999e-05,2]
[356136958,1741941040134,-2666.2,9.999e-05,2]
[356136959,1741941040171,-50072.5,9.999e-05,2]
[356136960,1741941040184,-652.01062997,9.999e-05,2]
[356136961,1741941040858,-163.02660544,9.999e-05,2]
[356136962,1741941042227,-11336.83571536,9.999e-05,2]
[356136963,1741941042282,-24571.526139,9.999e-05,2]
[356136964,1741941042294,-9844.91276998,9.999e-05,2]
[356136965,1741941042337,-1210675.41013411,9.999e-05,2]
[356136966,1741941042348,-1254.04677535,9.999e-05,2]
[356136967,1741941042360,-259.71546597,9.999e-05,2]
[356136981,1741941042828,-1547.07770702,9.999e-05,2]
[356136983,1741941042840,-1450.31865778,9.999e-05,2]
[356136992,1741941042883,-537.35,9.999e-05,2]
[356136993,1741941042894,-1517.37664709,9.999e-05,2]
[356136994,1741941042906,-81001.82153273,9.999e-05,2]
[356136995,1741941042940,-296.21242944,9.999e-05,2]
[356136999,1741941044533,-1409.41880164,9.999e-05,2]
[356137000,1741941044543,-1711.87058023,9.999e-05,2]
[356137001,1741941044554,-443.4506406,9.999e-05,2]
[356137002,1741941044569,-846.0,9.999e-05,2]
[356137003,1741941044579,-495.58079881,9.999e-05,2]
[356137004,1741941044590,-4234.43782376,9.999e-05,2]
[356137005,1741941044601,-4200.04995,9.999e-05,2]
[356137006,1741941044612,-541.54300055,9.999e-05,2]
[356137007,1741941044628,-2035.22716412,9.999e-05,2]
[356137009,1741941045813,-6656.18841251,9.999e-05,2]
[356137010,1741941045826,-867.194902,9.999e-05,2]
[356137011,1741941045869,-5986.41110973,9.999e-05,2]
[356137012,1741941045925,-400.0,9.999e-05,2]
[356137013,1741941045937,-16536.0,9.999e-05,2]
[356137014,1741941045981,-725.00574762,9.999e-05,2]
[356137015,1741941046039,-7809.03247051,9.999e-05,2]
[356137016,1741941046097,-541.10012109,9.999e-05,2]
[356137017,1741941046113,-4912.71591242,9.999e-05,2]
[356137018,1741941046124,-1627.2,9.999e-05,2]
[356137019,1741941046135,-1051.96977662,9.999e-05,2]
[356137020,1741941046148,-345.27883011,9.999e-05,2]
[356137021,1741941046159,-196669.16301164,9.999e-05,2]
[356137022,1741941046172,-13181.43845889,9.999e-05,2]
[356137023,1741941046190,-711.6719425,9.999e-05,2]
[356137024,1741941046205,-576.70999178,9.999e-05,2]
[356137025,1741941046217,-1104.89183922,9.999e-05,2]
[356137026,1741941046228,-432.00902886,9.999e-05,2]
[356137027,1741941046240,-281.205,9.999e-05,2]
[356137028,1741941046252,-754543.72524139,9.999e-05,2]
[356137029,1741941046261,-501.99186702,9.999e-05,2]
[356137030,1741941046270,-1058961.24405821,0.0001,2]
[356137031,1741941046281,-987.4,0.0001,2]
[356137032,1741941046292,-2325.03286203,0.0001,2]
[356137034,1741941046311,-751.38695642,0.0001,2]
[356137035,1741941046324,-8150.95787752,0.0001,2]
[356137056,1741941602039,163.88,8.726e-05,2]
[356137242,1741941928597,-162.28401461,9.336e-05,2]
[356137245,1741941963909,-150.0,9.336e-05,2]
[356137246,1741941967394,-189.64102603,9.336e-05,2]
[356137247,1741941989090,-196.34065786,9.286e-05,2]
[356137250,1741942071725,2310.87,8.961e-05,2]
[356137251,1741942112007,-3.65934214,9.286e-05,2]
[356137252,1741942112030,-202.07065786,9.3e-05,2]
[356137345,1741942212229,-151.06,9.198e-05,2]
[356137369,1741942232118,-48.94,9.198e-05,2]
[356137370,1741942232128,-709.26382605,9.3e-05,2]
[356137372,1741942232140,-233.13551609,9.3e-05,2]
[356137373,1741942232150,-197.73065786,9.322e-05,2]
[356137375,1741942232167,-0.32934214,9.322e-05,2]
[356137377,1741942232178,-402.58996885,9.336e-05,2]
[356137381,1741942232221,-256.25013672,9.336e-05,2]
[356137385,1741942232277,-691.65485379,9.336e-05,2]
[356137386,1741942232287,-150.0,9.368e-05,2]
[356137387,1741942232297,-154.48,9.399e-05,2]
[356137388,1741942232306,-150.0,9.562e-05,7]
[356137389,1741942232315,-3035.429,9.8e-05,2]
[356137390,1741942232325,-171.559,9.8e-05,2]
[356137391,1741942232334,-300.0,9.847e-05,2]
[356137392,1741942232344,-801.8224,9.848e-05,2]
[356137393,1741942232354,-250.0,9.864e-05,2]
[356137394,1741942232364,-550.0,9.948e-05,2]
[356137395,1741942232373,-150.0,9.973e-05,2]
[356137396,1741942232382,-150.0,9.998e-05,2]
[356137397,1741942232392,-418.32655585,9.999e-05,2]
[356137398,1741942232401,-1232.03026769,9.999e-05,3]
[356137399,1741942232411,-1232.03026769,9.999e-05,3]
[356137400,1741942232420,-1232.03026769,9.999e-05,3]
[356137401,1741942232430,-1320.47,9.999e-05,2]
[356137402,1741942232439,-819.47027342,9.999e-05,2]
[356137403,1741942232448,-2849.68054488,9.999e-05,2]
[356137404,1741942232475,-696.80503053,9.999e-05,2]
[356137405,1741942232488,-3069.5,9.999e-05,2]
[356137406,1741942232500,-1000.14649844,9.999e-05,2]
[356137429,1741942238046,-2356.70560517,9.999e-05,2]
[356137430,1741942238058,-27.15232098,9.999e-05,2]
[356137431,1741942238068,-385.79267902,9.999e-05,2]
[356137432,1741942238083,-102.72732098,9.999e-05,2]
[356137433,1741942238093,-482.64,9.999e-05,2]
[356137434,1741942238102,-330.53,9.999e-05,2]
[356137435,1741942238130,-2658.10267902,9.999e-05,2]
[356137436,1741942238143,-2226.64732098,9.999e-05,2]
[356137437,1741942238152,-1495.73,9.999e-05,2]
[356137438,1741942238161,-150.99,9.999e-05,2]
[356137439,1741942238171,-1390.84,9.999e-05,2]
[356137440,1741942238181,-260.32626812,9.999e-05,2]
[356137441,1741942238190,-1061.0,0.0001,2]
[356137442,1741942238200,-111323.14289177,0.0001,2]
[356137443,1741942238216,-4953.42,0.0001,2]
[356137444,1741942238227,-270721.1669231,0.0001,2]
[356137445,1741942238252,-588.78215811,0.0001,2]
[356137446,1741942238264,-628.475,0.0001,2]
[356137447,1741942238275,-330.0,0.0001,2]
[356137448,1741942238298,-1653.98871404,0.0001,2]
[356137450,1741942238309,-311.184893,0.0001,2]
[356137452,1741942238320,-465.16440218,0.0001,2]
[356137513,1741942240092,-558.58035305,0.0001,2]
[356137514,1741942240356,-385.59722824,0.0001,2]
[356137515,1741942240410,-7648.94644887,0.0001,2]
[356137516,1741942240421,-1439.07083368,0.0001,2]
[356137517,1741942240465,-1095.6062822,0.0001,2]
[356137518,1741942240477,-4540.28453403,0.0001,2]
[356137519,1741942240491,-3999.64712997,0.0001,2]
[356137520,1741942240502,-1469.6911387,0.0001,2]
[356137521,1741942240518,-2529.84461531,0.0001,2]
[356137572,1741942242997,-924.09358818,0.0001,2]
[356137599,1741942243155,-21908.08728125,0.0001,2]
[356137601,1741942243167,-282520.0,0.0001,2]
[356137606,1741942243208,-1299.35355791,0.0001,2]
[356137607,1741942243219,-554.202,0.0001,2]
[356137680,1741942245452,-762.40694147,0.0001,2]
[356137685,1741942245990,-960.0,0.0001,2]
[356137686,1741942246000,-3197.58102209,0.0001,2]
[356137687,1741942246096,-16593.0,0.0001,2]
[356137688,1741942246257,-745.36525181,0.0001,2]
[356137689,1741942246268,-1298.10342144,0.0001,2]
[356137690,1741942246280,-9196.5,0.0001,2]
[356137691,1741942246291,-897.58999998,0.0001,2]
[356137977,1741942711754,-163.90478588,9.8e-05,2]
[356137981,1741942970051,-163.88,9.07e-05,2]
[356137982,1741942970074,-7.21278289,9.55e-05,2]
[356137984,1741943020044,-150.0,9.55e-05,2]
[356137987,1741943154759,2195.32,8.219e-05,2]
[356138080,1741943247791,-196.36919943,9.424e-05,2]
[356138082,1741943313245,-150.0,9.424e-05,2]
[356138084,1741943384194,-166.342,9.268e-05,2]
[356138096,1741943432181,-171.98,9.229e-05,2]
[356138097,1741943432190,-150.0,9.248e-05,2]
[356138098,1741943432201,-198.43993916,9.268e-05,2]
[356138099,1741943432341,-508.48267082,9.268e-05,2]
[356138100,1741943432355,-407.49539002,9.268e-05,2]
[356138101,1741943432368,-1653.63080057,9.424e-05,2]
[356138102,1741943432380,-1958.33,9.459e-05,2]
[356138103,1741943432390,-928.04721711,9.55e-05,2]
[356138104,1741943432400,-437.85,9.554e-05,2]
[356138105,1741943432410,-300.0,9.799e-05,2]
[356138106,1741943432419,-2759.29621412,9.8e-05,2]
[356138107,1741943432428,-176.719,9.8e-05,2]
[356138108,1741943432437,-150.0,9.899e-05,2]
[356138109,1741943432446,-10872.0128,9.9e-05,2]
[356138110,1741943432456,-665.4162,9.9e-05,2]
[356138111,1741943432466,-8198.5498,9.9e-05,2]
[356138112,1741943432475,-881.652,9.9e-05,2]
[356138113,1741943432484,-299.5491,9.9e-05,2]
[356138114,1741943432493,-1000.0,9.9e-05,2]
[356138115,1741943432502,-500.0,9.973e-05,2]
[356138116,1741943432511,-1446.8543,9.973e-05,2]
[356138117,1741943432521,-299.99,9.99e-05,2]
[356138118,1741943432531,-150.99,9.99e-05,2]
[356138119,1741943432539,-348.60546321,9.999e-05,2]
[356138120,1741943432549,-1265.45,9.999e-05,2]
[356138122,1741943432559,-6594.48,9.999e-05,2]
[356138124,1741943432568,-1264.68,9.999e-05,2]
[356138125,1741943432578,-499.80403362,9.999e-05,2]
[356138126,1741943432587,-42782.78672874,9.999e-05,2]
[356138127,1741943432599,-1023.3080068,9.999e-05,2]
[356138128,1741943432610,-269.355,9.999e-05,2]
[356138129,1741943432620,-1209.496,9.999e-05,2]
[356138130,1741943432632,-7858.54724254,9.999e-05,2]
[356138131,1741943432651,-275140.68933268,9.999e-05,2]
[356138132,1741943432662,-131091.94239417,9.999e-05,2]
[356138133,1741943432688,-3217.4124,9.999e-05,2]
[356138136,1741943438167,-1000.0,9.9e-05,2]
[356138137,1741943438179,-182.22838768,9.998e-05,2]
[356138138,1741943438188,-12986.61370319,9.999e-05,2]
[356138139,1741943438208,-37004.86202383,9.999e-05,2]
[356138140,1741943438319,-1018.54772979,9.999e-05,2]
[356138141,1741943438373,-86595.75762051,9.999e-05,2]
[356138142,1741943438382,-11585.49828173,0.0001,2]
[356138143,1741943438395,-194304.96570928,0.0001,2]
[356138144,1741943438437,-501.29659805,0.0001,2]
[356138148,1741943440377,-660.07913423,0.0001,2]
[356138149,1741943440390,-475.8703,0.0001,2]
[356138150,1741943440402,-2475.98433995,0.0001,2]
[356138151,1741943440535,-2299.19999989,0.0001,2]
[356138152,1741943440546,-2267.16292566,0.0001,2]
[356138153,1741943440589,-41221.73302409,0.0001,2]
[356138154,1741943440646,-1747.84968712,0.0001,2]
[356138155,1741943440655,-904.0,0.0001,2]
[356138156,1741943440664,-1751.96232778,0.0001,2]
[356138157,1741943440675,-1746.3324078,0.0001,2]
[356138158,1741943440686,-5380.16031994,0.0001,2]
[356138159,1741943440697,-11148.5019612,0.0001,2]
[356138160,1741943440708,-717.74463581,0.0001,2]
[356138177,1741943443278,-750.55278429,0.0001,2]
[356138178,1741943443290,-120.44721571,0.0001,2]
[356138179,1741943443299,-175.68721764,0.0001,2]
[356138180,1741943443331,-758.57759602,0.0001,2]
[356138181,1741943443437,-638.55,0.0001,2]
[356138182,1741943443492,-624.95015727,0.0001,2]
[356138183,1741943443503,-83787.26407208,0.0001,2]
[356138184,1741943443598,-394.0571819,0.0001,2]
[356138185,1741943446217,-268.987887,0.0001,2]
[356138186,1741943446229,-318.8803487,0.0001,2]
[356138187,1741943446272,-1300.68407719,0.0001,2]
[356138188,1741943446284,-564.88228283,0.0001,2]
[356138189,1741943446532,-555.60807005,0.0001,2]
[356138190,1741943446544,-8313.22055777,0.0001,2]
[356138204,1741943521564,658.85,0.00020011,120]
[356138212,1741944125057,163.88,8.891e-05,2]
[356138214,1741944248831,2085.55,8.219e-05,2]
[356138216,1741944318765,-1602.0,9.8e-05,2]
[356138217,1741944329941,-245.75244979,9.566e-05,2]
[356138219,1741944337890,-151.97251927,9.566e-05,2]
[356138220,1741944351240,-1602.27503094,9.566e-05,2]
[356138221,1741944351265,-245.7525,9.79e-05,2]
[356138222,1741944351288,-449.2974,9.8e-05,2]
[356138223,1741944351312,-805.67506906,9.8e-05,2]
[356138225,1741944363497,1193.99,8e-05,2]
[356138236,1741944477026,75454.01,8e-05,2]
[356138237,1741944477056,31472.77514224,8e-05,2]
[356138248,1741944549277,-204.64450131,9e-05,2]
[356138259,1741944564982,-45.35549869,9e-05,2]
[356138260,1741944565004,-255.64450131,9.8e-05,2]
[356138278,1741944632370,-200.0,9.393e-05,2]
[356138279,1741944632380,-250.0,9.426e-05,2]
[356138280,1741944632389,-550.0,9.751e-05,2]
[356138281,1741944632402,-706.92122751,9.751e-05,2]
[356138282,1741944632426,-3902.29452265,9.751e-05,2]
[356138283,1741944632437,-34439.84424984,9.751e-05,2]
[356138284,1741944632446,-150.0,9.751e-05,2]
[356138285,1741944632458,-204.644502,9.751e-05,2]
[356138286,1741944632467,-168.35212963,9.8e-05,2]
[356138287,1741944632476,-26596.84599416,9.89e-05,2]
[356138288,1741944632485,-1000.0,9.9e-05,2]
[356138289,1741944632494,-14223.26107945,9.9e-05,2]
[356138290,1741944632537,-343.28965258,9.9e-05,2]
[356138291,1741944632597,-922.539993,9.9e-05,2]
[356138292,1741944632959,-967.42077249,9.9e-05,2]
[356138293,1741944632971,-334.60004339,9.9e-05,2]
[356138433,1741944638510,-30059.56939588,9.9e-05,2]
[356138434,1741944638522,-713.80528119,9.9e-05,2]
[356138435,1741944638558,-16317.18165786,9.9e-05,2]
[356138436,1741944638570,-2159.66702416,9.9e-05,2]
[356138437,1741944638579,-4429.2002,9.9e-05,2]
[356138438,1741944638588,-500.0,9.9e-05,2]
[356138439,1741944638598,-1007.0,9.9e-05,2]
[356138440,1741944638607,-660.55994495,9.9e-05,2]
[356138441,1741944638618,-339.44005505,9.9e-05,2]
[356138442,1741944638628,-1137.77994495,9.91e-05,2]
[356138443,1741944638639,-1014.65399562,9.91e-05,2]
[356138444,1741944638650,-1163.10000005,9.91e-05,2]
[356138445,1741944638662,-540.68,9.91e-05,2]
[356138447,1741944640528,-645.85735123,9.91e-05,2]
[356138448,1741944640587,-794.08476157,9.91e-05,2]
[356138449,1741944640952,-3613.01084398,9.91e-05,2]
[356138450,1741944640966,-2493.0498307,9.91e-05,2]
[356138451,1741944641053,-4901.02768445,9.91e-05,2]
[356138452,1741944641063,-29952.56965885,9.91e-05,2]
[356138453,1741944641076,-1028.8756,9.973e-05,2]
[356138454,1741944641086,-160.22124032,9.973e-05,2]
[356138455,1741944641095,-508.54540555,9.973e-05,2]
[356138456,1741944641104,-937.82461428,9.999e-05,3]
[356138457,1741944641114,-290.50455268,9.999e-05,2]
[356138458,1741944641124,-500.0,9.999e-05,2]
[356138459,1741944641133,-1248.81683573,9.999e-05,3]
[356138460,1741944641143,-1306.71,9.999e-05,2]
[356138461,1741944641152,-294.14,9.999e-05,2]
[356138462,1741944641162,-545.8,9.999e-05,2]
[356138463,1741944641171,-3614.28,9.999e-05,2]
[356138464,1741944641181,-150.99,9.999e-05,2]
[356138465,1741944641190,-230.67130466,9.999e-05,2]
[356138466,1741944641200,-777.0,0.0001,2]
[356138467,1741944641209,-587.97043171,0.0001,2]
[356138468,1741944641219,-132890.76104811,0.0001,2]
[356138469,1741944641230,-10300.03278253,0.0001,2]
[356138470,1741944641241,-2177.27208999,0.0001,2]
[356138471,1741944641257,-843.34008017,0.0001,2]
[356138472,1741944641268,-1270.15857547,0.0001,2]
[356138473,1741944641281,-6352.86323013,0.0001,2]
[356138474,1741944641292,-4217.54015466,0.0001,2]
[356138475,1741944641303,-1891.83830736,0.0001,2]
[356138476,1741944641315,-1740.0911033,0.0001,2]
[356138477,1741944641326,-1199.30233872,0.0001,2]
[356138478,1741944641349,-1007.36282815,9.749e-05,2]
[356138479,1741944641358,-150678.49906594,0.0001,2]
[356138480,1741944641380,-14805.11091854,0.0001,2]
[356138481,1741944641728,-89183.83790079,0.0001,2]
[356138497,1741944646408,-1901.54109989,0.0001,2]
[356138498,1741944646520,-9007.32843651,0.0001,2]
[356138499,1741944646531,-826.86383335,0.0001,2]
[356138500,1741944646633,-8311.8,0.0001,2]
[356138501,1741944646643,-19554.97683692,0.0001,2]
[356138502,1741944646654,-13349.57284,0.0001,2]
[356138505,1741944825471,-163.02660544,9.393e-05,2]
[356138510,1741944908594,-157.0,9.393e-05,3]
[356138512,1741944942941,-176.15106505,9.393e-05,2]
[356138513,1741944944085,-660.82232951,9.393e-05,2]
[356138514,1741944955841,-300.0,9.899e-05,2]
[356138515,1741944955864,-156.1552,9.9e-05,2]
[356138516,1741944955886,-179.75019341,9.9e-05,2]
[356138517,1741944957558,-888.55030415,9.9e-05,2]
[356138518,1741944965111,-232.91991059,9.899e-05,2]
[356138539,1741945321207,-193.91192058,9.8e-05,2]
[356138542,1741945339120,163.88,7.514e-05,2]
[356138543,1741945373755,-290.42254486,9.382e-05,2]
[356138547,1741945398107,-209.57745514,9.382e-05,2]
[356138550,1741945469412,-150.0,9.382e-05,2]
[356138551,1741945481956,-150.0,9.229e-05,2]
[356138554,1741945554183,-1850.0,9.229e-05,2]
[356138555,1741945554207,-252.1,9.382e-05,2]
[356138556,1741945554230,-317.95269671,9.382e-05,2]
[356138557,1741945554253,-176.15106505,9.382e-05,2]
[356138558,1741945554276,-3617.51,9.468e-05,2]
[356138559,1741945554302,-317.9526967,9.468e-05,2]
[356138560,1741945554327,-806.08807942,9.8e-05,2]
[356138561,1741945554355,-150.0,9.863e-05,2]
[356138562,1741945554378,-252.59147164,9.89e-05,2]
[356138563,1741945554400,-193.91192058,9.899e-05,2]
[356138564,1741945554423,-29740.64300244,9.9e-05,2]
[356138565,1741945554446,-274924.7258,9.9e-05,2]
[356138566,1741945554469,-1000.0,9.9e-05,2]
[356138567,1741945554491,-5990.09570586,9.91e-05,2]
[356138568,1741945554512,-5626.84698491,9.924e-05,2]
[356138569,1741945554533,-165.57512662,9.973e-05,2]
[356138570,1741945554555,-181.826,9.973e-05,2]
[356138571,1741945554577,-3308.703,9.973e-05,2]
[356138572,1741945554599,-1183.0,9.999e-05,2]
[356138573,1741945554620,-242.08712723,9.999e-05,2]
[356138574,1741945554643,-500.0,9.999e-05,2]
[356138575,1741945554665,-500.0,9.999e-05,2]
[356138576,1741945554688,-500.0,9.999e-05,2]
[356138577,1741945554710,-500.0,9.999e-05,2]
[356138578,1741945554733,-362.04000336,9.999e-05,2]
[356138579,1741945554756,-1252.26,9.999e-05,2]
[356138580,1741945554777,-670.0,0.0001,2]
[356138581,1741945554801,-121127.93931948,0.0001,2]
[356138584,1741945583846,476.30319831,9.132e-05,2]
[356138585,1741945583875,315.48229907,9.132e-05,2]
[356138586,1741945586231,-192.96755021,9.132e-05,2]
[356138596,1741945740597,-191.47934214,9.132e-05,2]
[356138600,1741945771147,-150.0,9.562e-05,7]
[356138604,1741945828271,-150.0,9.132e-05,2]
[356138606,1741945831613,-438.97982347,9.132e-05,2]
[356138607,1741945831670,-216.0577868,9.132e-05,2]
[356138608,1741945831681,-6047.24772307,9.349e-05,2]
[356138609,1741945831730,-458.11714593,9.349e-05,2]
[356138610,1741945831743,-3606.6452728,9.349e-05,2]
[356138611,1741945831786,-533.22015203,9.349e-05,2]
[356138621,1741945832300,-1950.16032161,9.349e-05,2]
[356138623,1741945833857,-300.0,9.349e-05,2]
[356138625,1741945837525,-1105.0,9.349e-05,2]
[356138626,1741945837617,-500.0,9.349e-05,2]
[356138627,1741945837629,-517.34603854,9.349e-05,2]
[356138629,1741945839923,-434.54746564,9.349e-05,2]
[356138630,1741945839961,-1256.16204428,9.349e-05,2]
[356138631,1741945839973,-883.25918109,9.349e-05,2]
[356138633,1741945840009,-150.0,9.349e-05,2]
[356138634,1741945840074,-643.65507974,9.349e-05,2]
[356138635,1741945842183,-421.0,9.349e-05,2]
[356138646,1741945842677,-769.60157368,9.349e-05,2]
[356138649,1741945844316,-814.82264092,9.349e-05,2]
[356138650,1741945844327,-671.16215822,9.349e-05,2]
[356138653,1741945845595,-832.98333553,9.349e-05,2]
[356138654,1741945845653,-423.6086688,9.349e-05,2]
[356138655,1741945845767,-1581.46119812,9.349e-05,2]
[356138656,1741945845776,-1439.60324355,9.393e-05,2]
[356138657,1741945845825,-563.2364726,9.393e-05,2]
[356138658,1741945845882,-143.44028385,9.393e-05,2]
[356138659,1741945845892,-150.0,9.735e-05,2]
[356138660,1741945845901,-150.0,9.793e-05,2]
[356138661,1741945845910,-25.24856924,9.822e-05,2]
[356138662,1741945845940,-158.92414187,9.822e-05,2]
[356138663,1741945845950,-150.0,9.837e-05,2]
[356138664,1741945845960,-383.33006084,9.84e-05,2]
[356138665,1741945845970,-150.0,9.841e-05,2]
[356138666,1741945845980,-150.0,9.863e-05,2]
[356138667,1741945845990,-150.0,9.872e-05,2]
[356138668,1741945846000,-150.0,9.886e-05,2]
[356138669,1741945846010,-1000.0,9.9e-05,2]
[356138670,1741945846020,-2056.23344627,9.9e-05,2]
[356138671,1741945846032,-873.30308618,9.9e-05,2]
[356138684,1741945921605,-200.1051334,9.85e-05,2]